Cogmind - Beta 9.1 @@@ ROGUE MODE // 2019.11.03 @ 04:14:05 Player: MrPainting Result: Destroyed by YI-UF0 with YI-UF0's Doublenader Performance ------------- Evolutions (0) 0 Regions Visited (2) 400 Robots Destroyed (28) 140 Value Destroyed (506) 506 Prototype IDs (2) 40 Alien Tech Used (0) 0 Bonus (0) 0 TOTAL SCORE: 1086 Bonus ------- None Cogmind --------- Core Integrity 0/250 Matter 168/300 Energy 64/100 System Corruption 0% Temperature Cool (0) Location -10/Mines Parts ------- Power (1) Propulsion (2) Utility (2) Medium Storage Unit Weight Redist. System Weapon (2) Inventory (8) Hover Unit Hover Unit Compact Matter Pod (0) Weight Redist. System ECM Suite Hardened Light Armor Plating Peak State ------------ Power Light Ion Engine Propulsion Hover Unit Hover Unit Utility Medium Storage Unit Weight Redist. System Weapon Grenade Launcher Grenade Launcher Inventory Hover Unit Weight Redist. System ECM Suite Weapon Shielding Hardened Light Armor Plating Grenade Launcher Grenade Launcher Mining Claw [Rating: 9] Favorites ----------- Power Light Ion Engine Engine Light Ion Engine Propulsion Hover Unit Leg Aluminum Leg Hover Unit Hover Unit Utility Small Storage Unit Device ECM Suite Storage Small Storage Unit Weapon EM Pulse Gun Energy Gun EM Pulse Gun Ballistic Gun Light Assault Rifle Launcher Grenade Launcher Special Weapon Mining Laser Build | -11 -10 -10 ------- Run | Scr Mat Min Slots Evolved . | . . . Power . | . . . Propulsion . | . . . Utility . | . . . Weapon . | . . . Parts Attached 25 | 6 17 2 Power 3 | 1 2 . Engine 3 | 1 2 . Core . | . . . Reactor . | . . . Propulsion 5 | 2 3 . Treads . | . . . Leg 2 | 2 . . Wheel . | . . . Hover 3 | . 3 . Flight . | . . . Utility 8 | 1 7 . Device 3 | . 3 . Storage 5 | 1 4 . Processor . | . . . Hackware . | . . . Protection . | . . . Artifact . | . . . Weapon 9 | 2 5 2 Energy Gun 2 | 2 . . Energy Cannon . | . . . Ballistic Gun 2 | . 2 . Ballistic Cannon . | . . . Launcher 4 | . 2 2 Special Weapon 1 | . 1 . Impact Weapon . | . . . Slashing Weapon . | . . . Piercing Weapon . | . . . Special Melee Weapon . | . . . Unidentified Prototypes . | . . . Parts Lost 6 | . 2 4 Power 1 | . . 1 Propulsion 1 | . . 1 Utility . | . . . Weapon 4 | . 2 2 Highest Loss Streak 4 | . 2 4 Average Slot Usage (%) 96 | . 96 94 Engine 14 | . 14 14 Leg 11 | . 13 . Hover 16 | . 14 24 Device 13 | . 12 14 Storage 14 | . 14 14 Energy Gun 9 | . 10 . Ballistic Gun 4 | . 5 . Launcher 10 | . 8 26 Naked Turns . | . . . Heaviest Build 18 | 13 18 17 Greatest Support 20 | 20 20 18 Greatest Overweight (x) 2 | . 2 . Average Overweight (x) . | . . . Largest Inventory Capacity 10 | 6 10 8 Average Capacity 6 | 5 6 8 Most Carried 8 | 4 8 8 Average Carried 5 | 2 5 7 Final Capacity 8 | 6 8 8 Final Carried 6 | 4 6 6 Class Distribution -------------------- 100% | Mutant Dominant Class ---------------- Mutant | -10/Materials Mutant | -10/Mines Resources | -11 -10 -10 ----------- Run | Scr Mat Min Matter Collected 669 | 235 239 195 Remotely . | . . . Salvage Created 323 | . 294 29 Parts 23 | . 23 . Haulers Intercepted 2 | . 2 . Recyclers Shooed . | . . . Parts Field Recycled . | . . . Retrieved Matter . | . . . Parts Self-Destructed . | . . . Prevented . | . . . Kills | -11 -10 -10 ------- Run | Scr Mat Min Combat Hostiles Destroyed 23 | . 11 12 Guns 1 | . 1 . AOE 22 | . 10 12 Classes Destroyed 6 | . 5 1 Worker 1 | . 1 . Hauler 2 | . 2 . Watcher 2 | . 2 . Swarmer 3 | . 3 . Grunt 10 | . 8 2 Assembled 10 | . . 10 Best Kill Streak 10 | . 9 10 Combat Bots Only 10 | . 4 10 Max Kills in Single Turn 4 | . 2 4 Gunslinging . | . . . Exploded 4 | . 2 4 Melee . | . . . Uniques/NPCs Destroyed . | . . . Combat | -11 -10 -10 -------- Run | Scr Mat Min Damage Taken 787 | . 255 532 Core 272 | . 82 190 Absorbed by Shields . | . . . Core Remaining (%) 100 | 100 . . Volleys Fired 31 | . 25 6 Largest 2 | . 2 2 Hottest 80 | . 80 60 Shots Fired 62 | . 50 12 Gun 26 | . 26 . Cannon . | . . . Launcher 36 | . 24 12 Special . | . . . Kinetic 16 | . 16 . Thermal . | . . . Explosive 36 | . 24 12 Electromagnetic 10 | . 10 . Robot Hit Streak 8 | . 8 6 Robot Miss Streak 2 | . 2 1 Penetration Max . | . . . Secondary Targets . | . . . Shots Hit Robots 26 | . 17 9 Core Hits 59 | . 27 32 Critical Hits . | . . . Critical Kills . | . . . Critical Parts Destroyed . | . . . Melee Attacks . | . . . Impact . | . . . Slashing . | . . . Piercing . | . . . Sneak Attacks . | . . . Combat Hostiles . | . . . Follow-up Attacks . | . . . Damage Inflicted 2273 | . 1290 983 Guns 163 | . 163 . Cannons . | . . . Explosions 2110 | . 1127 983 Melee . | . . . Ramming . | . . . Kinetic 74 | . 74 . Thermal 249 | . 142 107 Explosive 1861 | . 985 876 Electromagnetic 89 | . 89 . Impact . | . . . Slashing . | . . . Piercing . | . . . Highest Corruption . | . . . Average Corruption . | . . . Corruption Purged . | . . . Overload Shots . | . . . Overflow Damage 149 | . 104 45 Projectiles . | . . . Explosions 149 | . 104 45 Melee . | . . . Knockbacks . | . . . Impact . | . . . Kinetic . | . . . Secondary . | . . . Self-Inflicted Damage 270 | . 107 163 Shots 9 | . 2 7 Rammed . | . . . Targets Rammed . | . . . Kicked . | . . . Crushed . | . . . Highest Temperature 42 | . 42 21 Average Temperature 15 | . 16 9 Received Heat Transfer 57 | . 48 9 Siege Activations . | . . . Robots Corrupted . | . . . Combat Hostiles . | . . . Parts Fried . | . . . Impact Corruptions . | . . . Robots Melted . | . . . Combat Hostiles . | . . . Parts Melted 1 | . 1 . Heat Transferred 250 | . 150 100 Parts Sabotaged . | . . . Parts Stolen . | . . . Parts Stripped . | . . . Power Chain Reactions 1 | . 1 . Missiles Intercepted . | . . . Alert | -11 -10 -10 ------- Run | Scr Mat Min Peak Influence 288 | . 288 159 Average Influence 78 | . 75 154 Maximum Alert Level 1 | . 1 . Low Security (%) 87 | . . . Level 1 12 | . . . Level 2 . | . . . Level 3 . | . . . Level 4 . | . . . Level 5 . | . . . High Security . | . . . Max Security . | . . . Squads Dispatched 1 | . 1 . Investigation . | . . . Extermination . | . . . Reinforcement 1 | . 1 . Assault . | . . . Garrison . | . . . Intercept . | . . . Construction Impeded . | . . . Haulers Reinforced . | . . . Stealth | -11 -10 -10 --------- Run | Scr Mat Min Distress Signals . | . . . Communications Jammed . | . . . Distress Signals . | . . . Times Spotted 32 | . 16 16 Peak Tracking Total 8 | . 3 8 Tactical Retreats . | . . . Traps | -11 -10 -10 ------- Run | Scr Mat Min Traps Triggered 1 | . 1 . Indirectly . | . . . Trap Hack Attempts . | . . . Triggered . | . . . Disarmed . | . . . Reprogrammed . | . . . Reused . | . . . Traps Extracted . | . . . Installed . | . . . Triggered . | . . . Machines | -11 -10 -10 ---------- Run | Scr Mat Min Machines Disabled 6 | . 5 1 Max in Single Turn 3 | . 3 1 Machines Sabotaged . | . . . Garrisons Compromised . | . . . Overloaded Fab Kills . | . . . Fab Network Shutdowns . | . . . Hacking | -11 -10 -10 --------- Run | Scr Mat Min Machines Accessed 2 | . 2 . Terminals 2 | . 2 . Fabricators . | . . . Repair Stations . | . . . Recycling Units . | . . . Scanalyzers . | . . . Garrison Access . | . . . Total Hacks 10 | . 10 . Successful 7 | . 7 . Failed 3 | . 3 . Catastrophic . | . . . Database Lockouts . | . . . Manual 6 | . 6 . Terminals 10 | . 10 . Fabricators . | . . . Repair Stations . | . . . Recycling Units . | . . . Scanalyzers . | . . . Garrison Access . | . . . Terminal Hacks 4 | . 4 . Prototype ID Bank 1 | . 1 . Branch Access Points 1 | . 1 . Emergency Access Points 1 | . 1 . Zone Layout 1 | . 1 . Fabricator Hacks . | . . . Repair Station Hacks . | . . . Recycling Unit Hacks . | . . . Scanalyzer . | . . . Garrison Access Hacks . | . . . Unauthorized Hacks 7 | . 7 . Terminals 3 | . 3 . Track 1 | . 1 . Botnet 2 | . 2 . Fabricators . | . . . Repair Stations . | . . . Recycling Units . | . . . Scanalyzers . | . . . Garrison Access . | . . . Data Cores Recovered . | . . . Used . | . . . Hacking Detections 2 | . 2 . Full Trace Events . | . . . Feedback Events . | . . . Feedback Blocked . | . . . Robot Schematics Acquired . | . . . Robots Built . | . . . Matter . | . . . Time . | . . . Total Robot Build Rating . | . . . Part Schematics Acquired . | . . . Parts Built . | . . . Matter . | . . . Time . | . . . Total Part Build Rating . | . . . Parts Repaired . | . . . Time . | . . . Parts Recycled . | . . . Recycled Matter . | . . . Retrieved Matter . | . . . Retrieved Components . | . . . Parts Scanalyzed . | . . . Part Schematics Acquired . | . . . Parts Damaged . | . . . Bothacking | -11 -10 -10 ------------ Run | Scr Mat Min Used RIF Installer . | . . . Robots Hacked . | . . . Non-combat . | . . . Combat . | . . . Robot Hacks Applied . | . . . Relay Couplers Released . | . . . Robots Rewired . | . . . Allies Hacked . | . . . Hacks Repelled . | . . . Allies | -11 -10 -10 -------- Run | Scr Mat Min Total Allies . | . . . Largest Group . | . . . Highest-Rated Group . | . . . Highest-Rated Ally . | . . . Total Orders . | . . . Ally Attacks . | . . . Total Damage . | . . . Kills . | . . . Allies Corrupted . | . . . Allies Melted . | . . . Intel | -11 -10 -10 ------- Run | Scr Mat Min Robot Analysis Total . | . . . Derelict Logs Recovered . | . . . Drone Launches . | . . . Drone Recoveries . | . . . Exploration | -11 -10 -10 ------------- Run | Scr Mat Min Turns Passed 626 | 58 486 82 Spaces Moved 602 | 48 452 102 Core 22 | 21 . 1 Treads . | . . . Legs 190 | 27 163 . Wheels . | . . . Hover 390 | . 289 101 Flight . | . . . Fastest Speed 50 | 50 56 50 Average Speed 76 | 89 79 55 Slowest Speed 190 | 120 190 56 Overloaded Moves . | . . . Propulsion Burnouts . | . . . Robots Hopped . | . . . Cave-ins Triggered . | . . . Exploration Rate (%) 35 | 5 68 32 Regions Visited 2 Branch Regions 1 Pre-discovered Areas . | . . . Known Exits Taken 1 | . 1 . Unknown Exits Taken 1 | 1 . . Scrap Searched 1 | . . 1 Spaces Dug 7 | . 7 . Terrain Destroyed 256 | . 169 87 Melee . | . . . Projectile . | . . . AOE 256 | . 169 87 Actions | -11 -10 -10 --------- Run | Scr Mat Min Total 711 | 62 533 116 Wait 10 | . 10 . Move 600 | 47 451 102 Hop . | . . . Pick Up 26 | 9 14 3 Fast Attach 6 | 1 5 . Attach 10 | 5 3 2 Detach 2 | . 1 1 Swap 9 | . 9 . Drop 17 | . 15 2 Fire 31 | . 25 6 Melee . | . . . Ram . | . . . Kick . | . . . Crush . | . . . Escape Stasis . | . . . Rewire . | . . . Trap . | . . . Miscellaneous . | . . . Route ------- -11/Scrapyard -10/Materials (discovered 4 exits: [*Mat x3] / *Min) -10/Mines History --------- Turn | Location | Event 3 | -11/Scrapyard | Discovered new exit (range 15) 59 | -11/Scrapyard | Entered Materials 142 | -10/Materials | Identified exit to Mines 230 | -10/Materials | Discovered new exit (range 15) 345 | -10/Materials | Build established: Mutant 393 | -10/Materials | Discovered new exit (range 4) 524 | -10/Materials | Discovered new exit (range 15) 545 | -10/Materials | Entered Mines 604 | -10/Mines | Assembled infested the area 620 | -10/Mines | Core integrity fell below 50% 626 | -10/Mines | Core integrity fell below 20% 627 | -10/Mines | Destroyed by YI-UF0 with YI-UF0's Doublenader Last Messages --------------- 00618_ Dropped Weapon Shielding. 00619_ as-44260 destroyed. 00619_ as-02765 destroyed. 00619_ Grenade Launcher destroyed. 00620_ The unstable cave ceiling collapses. 00621_ Lgt. Ion Engine destroyed. 00623_ as-66334 destroyed. 00623_ as-21317 destroyed. 00623_ as-38320 destroyed. 00623_ as-96364 destroyed. 00623_ Grenade Launcher severed. 00624_ K-01 Serf cleans the Pressure Siphon. 00624_ Grenade Launcher destroyed. 00625_ The unstable cave ceiling collapses. 00626_ Grenade Launcher severed. 00627_ YI-UF0: "BAROOM!" 00627_ as-37955 destroyed. 00627_ as-21809 destroyed. 00627_ YI-UF0: "WHAAM!" 00627_ as-63881 destroyed. Map ----- +----------------------------------------------------+ | ???????????????????????????????????????????????? | | ???????????????????????????????????????????????? | | ???????????????????????????????????????????? ?? | | ?????????????????????# ??????????????????? # | | ????????????????????## ??????????????????? | | ?????????????????#### ??????????????????? ? | | ???????????????### ??????????????????? ? | | ??????????????? ##????????????????? ?? | | ??????????????## #########????????# #?? | | ??????????????# #####????# #?? | | ??????????????# ##???# #?? | | ???????????????# ##### #?? | | ????????????????# """ #?? | | ?????????????????# """ ##? | | ????????????????## """ #? | | ????????????????# """ ## ## | | ????????????????# ###### # | | ?????????????????# #????## # | | ?????????????????## ##?????# # | | ??????????????????## ##########??????# # | | ???????????????????## ##??????????????# # | | ????????????????#?### #??????????????##### | | ???????????????## # ##????##???????????## | | ???????????????# #?####"#######?????#### | | ??????????????## ##### #????????? | | ?????????????# ]!@ ## ########## | | ?????????????# % a ## | | ?????????????# # ########## | | ?????????????# ?# % #????????? | | ??????????? a a # #####????????? | | ??????????##### # # # # ?????????????? | | ??????????????######## ??????????????? | | ?????????????????????# ######???????????????? | | ?????????????????????# g ????????????????????? | | ?????????????????????# ????????????????????? | | ????????????????????? # ##???????????????????? | | ????????????????????? ? ????????????????????? | | ?????????????????????r? ????????????????????? | | ?????????????????????"? ????????????????????? | | ??????????????????????? ????????????????????? | | ??????????????????????? ?????????????????????? | | ???????????????????????????????????????????????? | | ???????????????????????????????????????????????? | | | | | | | | | | | | | | | +----------------------------------------------------+ Best States ------------- Heat Dissipation 25 Energy Generation 10 Energy Capacity 250 Matter Stores 300 Matter Capacity 300 Sight Range 16 Terrain Scan Density 10 ECM Strength 1 Additional Mass Support 6 Evasion (%) 53 Item Schematics ----------------- None Robot Schematics ------------------ None Fabricated ------------ Nothing Alien Tech Used ----------------- None Achievements -------------- None Challenges ------------ None Game ------ Seed DataFissionCore Manual? 0 Play Time 00:13:34 Cumulative 94.8 hours Start 2019.11.03 @ 04:02:08 End 2019.11.03 @ 04:14:05 Sessions 1 Manual Loads 0 Difficulty Rogue Special Mode None Game No. 154 Rogue 154 Adventurer 0 Explorer 0 Win Type - Total 0 Types 0/0/0/0/0/0/0 Lore% 31 Gallery% 45 Achievement% 33 Wizard Run 0 Options --------- ASCII 0 Keyboard 0 Movement Mouse Keybinds 0 Fullscreen 1 Font 18/SmallcapsGlow Map View 76x50 Tactical HUD 1 Map Filters NONE Filters NONE Steam 1 RUN: ad4a6b1c-d175-4ffe-a641-d8e2f64dbe32